fUSD/lending_fUSD_20240617
["ID","MTS","AMOUNT","RATE_DAILY","PERIOD"]
[329756064,1718650256315,-500.0,0.00021917,2]
[329756065,1718650256325,-4842.59,0.00021917,2]
[329756066,1718650256334,-1239.31,0.00021917,2]
[329756067,1718650256343,-507.03902533,0.00021917,2]
[329756068,1718650256355,-500.0,0.00021917,2]
[329756069,1718650256365,-500.0,0.00021917,2]
[329756070,1718650256375,-995.92,0.00021917,2]
[329756071,1718650256387,-2305.59,0.00021917,2]
[329756072,1718650256397,-500.0,0.00021917,2]
[329756073,1718650256407,-500.0,0.00021917,2]
[329756074,1718650256417,-500.0,0.00021917,2]
[329756075,1718650256427,-500.0,0.00021917,2]
[329756076,1718650256437,-500.0,0.00021917,2]
[329756077,1718650256447,-500.0,0.00021917,2]
[329756078,1718650256457,-653.69,0.00021917,2]
[329756079,1718650256660,-5591.44,0.00021917,2]
[329756080,1718650256669,-1598.12,0.00021917,2]
[329756081,1718650256679,-4400.73,0.00021917,2]
[329756082,1718650256688,-1331.77,0.00021917,2]
[329756083,1718650256697,-500.0,0.00021917,2]
[329756084,1718650256706,-500.0,0.00021917,2]
[329756085,1718650256715,-500.0,0.00021917,2]
[329756086,1718650256724,-242.84798605,0.00021917,2]
[329756087,1718650256733,-500.0,0.00021917,2]
[329756088,1718650256742,-967.38,0.00021917,2]
[329756089,1718650256751,-512.78,0.00021917,2]
[329756090,1718650256762,-500.0,0.00021917,2]
[329756091,1718650256771,-500.0,0.00021917,2]
[329756092,1718650256780,-6544.57,0.00021917,2]
[329756093,1718650256789,-500.0,0.00021917,2]
[329756094,1718650256798,-521.73440371,0.00021917,2]
[329756095,1718650256807,-1579.36,0.00021917,2]
[329756096,1718650256817,-2204.66,0.00021917,2]
[329756097,1718650256827,-3743.59,0.00021917,2]
[329756098,1718650256836,-810.2,0.00021917,2]
[329756099,1718650256845,-500.0,0.00021917,2]
[329756100,1718650256854,-2968.68,0.00021917,2]
[329756101,1718650256863,-500.0,0.00021917,2]
[329756102,1718650256873,-500.0,0.00021917,2]
[329756103,1718650256882,-10708.05,0.00021917,2]
[329756104,1718650256891,-500.0,0.00021917,2]
[329756105,1718650256901,-500.0,0.00021917,2]
[329756106,1718650256911,-500.0,0.00021917,2]
[329756107,1718650256920,-500.0,0.00021917,2]
[329756108,1718650256929,-805.32,0.00021917,2]
[329756109,1718650256939,-661.31,0.00021917,2]
[329756110,1718650256948,-4679.82,0.00021917,2]
[329756111,1718650256958,-500.0,0.00021917,2]
[329756112,1718650256967,-500.0,0.00021917,2]
[329756113,1718650256976,-716.29,0.00021917,2]
[329756114,1718650256985,-2511.2,0.00021917,2]
[329756115,1718650256995,-4202.81,0.00021917,2]
[329756116,1718650257005,-500.0,0.00021917,2]
[329756117,1718650257016,-843.47,0.00021917,2]
[329756118,1718650257025,-500.0,0.00021917,2]
[329756119,1718650257034,-151.0,0.00021917,2]
[329756120,1718650257043,-500.0,0.00021917,2]
[329756121,1718650257052,-1038.83,0.00021917,2]
[329756122,1718650257061,-500.0,0.00021917,2]
[329756123,1718650257071,-15672.16,0.00021917,2]
[329756124,1718650257080,-151.0,0.00021917,2]
[329756125,1718650257089,-500.0,0.00021917,2]
[329756126,1718650257099,-2250.96,0.00021917,2]
[329756127,1718650257108,-500.0,0.00021917,2]
[329756128,1718650257117,-500.0,0.00021917,2]
[329756129,1718650257126,-627.85573195,0.00021917,2]
[329756130,1718650257136,-500.0,0.00021917,2]
[329756131,1718650257145,-500.0,0.00021917,2]
[329756132,1718650257154,-500.0,0.00021917,2]
[329756133,1718650257163,-17805.58,0.00021917,2]
[329756134,1718650257172,-500.0,0.00021917,2]
[329756135,1718650257181,-5248.22,0.00021917,2]
[329756136,1718650257191,-500.0,0.00021917,2]
[329756137,1718650257200,-500.0,0.00021917,2]
[329756138,1718650257209,-623.07,0.00021917,2]
[329756139,1718650257219,-500.0,0.00021917,2]
[329756140,1718650257228,-500.0,0.00021917,2]
[329756141,1718650257237,-1752.09,0.00021917,2]
[329756142,1718650257247,-1096.55,0.00021917,2]
[329756143,1718650257256,-615.52,0.00021917,2]
[329756144,1718650257267,-500.0,0.00021917,2]
[329756145,1718650257276,-6067.37,0.00021917,2]
[329756146,1718650257285,-1037.1,0.00021917,2]
[329756147,1718650257294,-500.0,0.00021917,2]
[329756148,1718650257304,-500.0,0.00021917,2]
[329756149,1718650257316,-505.0914568,0.00021917,2]
[329756150,1718650257326,-565.35093261,0.00021917,2]
[329756151,1718650257336,-500.0,0.00021917,2]
[329756152,1718650257346,-6799.92,0.00021917,2]
[329756153,1718650257357,-4900.18,0.00021917,2]
[329756154,1718650257367,-6106.87,0.00021917,2]
[329756155,1718650257376,-500.0,0.00021917,2]
[329756156,1718650257386,-500.0,0.00021917,2]
[329756157,1718650257400,-500.0,0.00021917,2]
[329756158,1718650257410,-500.0,0.00021917,2]
[329756159,1718650257420,-165.5869799,0.00021917,2]
[329756160,1718650257430,-200.0,0.00021917,2]
[329756161,1718650257440,-500.0,0.00021917,2]
[329756162,1718650257449,-500.0,0.00021917,2]
[329756163,1718650257459,-3217.59,0.00021917,2]
[329756164,1718650257468,-500.0,0.00021917,2]
[329756165,1718650257477,-1267.62,0.00021917,2]
[329756166,1718650257488,-442.43866449,0.00021917,2]
[329756167,1718650257498,-1001.09,0.00021917,2]
[329756168,1718650257509,-1511.55,0.00021917,2]
[329756169,1718650257521,-500.0,0.00021917,2]
[329756170,1718650257532,-500.0,0.00021917,2]
[329756171,1718650257543,-9458.18,0.00021917,2]
[329756172,1718650257552,-2589.81,0.00021917,2]
[329756173,1718650257562,-500.0,0.00021917,2]
[329756174,1718650257571,-500.0,0.00021917,2]
[329756175,1718650257580,-500.0,0.00021917,2]
[329756176,1718650257589,-12561.77,0.00021917,2]
[329756177,1718650257599,-1152.83,0.00021917,2]
[329756178,1718650257608,-500.0,0.00021917,2]
[329756179,1718650257618,-1802.07,0.00021917,2]
[329756180,1718650257627,-5853.93,0.00021917,2]
[329756181,1718650257637,-500.0,0.00021917,2]
[329756182,1718650257646,-500.0,0.00021917,2]
[329756183,1718650257655,-500.0,0.00021917,2]
[329756184,1718650257665,-500.0,0.00021917,2]
[329756185,1718650257674,-500.0,0.00021917,2]
[329756186,1718650257684,-631.86,0.00021917,2]
[329756187,1718650257693,-500.0,0.00021917,2]
[329756188,1718650257703,-500.0,0.00021917,2]
[329756189,1718650257712,-526.1107459,0.00021917,2]
[329756190,1718650257721,-511.38,0.00021917,2]
[329756191,1718650257731,-513.35554871,0.00021917,2]
[329756192,1718650257744,-500.0,0.00021917,2]
[329756193,1718650257753,-500.0,0.00021917,2]
[329756194,1718650257765,-2800.28,0.00021917,2]
[329756195,1718650257774,-8622.08,0.00021917,2]
[329756196,1718650257783,-2944.48,0.00021917,2]
[329756197,1718650257792,-604.43,0.00021917,2]
[329756198,1718650257801,-500.0,0.00021917,2]
[329756199,1718650257809,-500.0,0.00021917,2]
[329756200,1718650257819,-670.06,0.00021917,2]
[329756201,1718650257829,-2287.81,0.00021917,2]
[329756202,1718650257838,-151.0,0.00021917,2]
[329756203,1718650257847,-1211.79,0.00021917,2]
[329756204,1718650257856,-1313.29,0.00021917,2]
[329756205,1718650257866,-3295.21,0.00021917,2]
[329756206,1718650257875,-500.0,0.00021917,2]
[329756207,1718650257884,-579.11,0.00021917,2]
[329756208,1718650257893,-500.0,0.00021917,2]
[329756209,1718650257902,-500.0,0.00021917,2]
[329756210,1718650257912,-500.0,0.00021917,2]
[329756211,1718650257921,-3010.68,0.00021917,2]
[329756212,1718650257930,-500.0,0.00021917,2]
[329756213,1718650257940,-500.0,0.00021917,2]
[329756214,1718650257949,-661.17,0.00021917,2]
[329756215,1718650257958,-2643.35,0.00021917,2]
[329756216,1718650257967,-1188.58,0.00021917,2]
[329756217,1718650257976,-677.91,0.00021917,2]
[329756218,1718650257985,-500.0,0.00021917,2]
[329756219,1718650257994,-8886.83,0.00021917,2]
[329756220,1718650258003,-500.0,0.00021917,2]
[329756221,1718650258017,-452.5528399,0.00021917,2]
[329756222,1718650258026,-5022.17,0.00021917,2]
[329756223,1718650258035,-5950.22,0.00021917,2]
[329756224,1718650258044,-500.0,0.00021917,2]
[329756225,1718650258053,-500.0,0.00021917,2]
[329756226,1718650258062,-930.24,0.00021917,2]
[329756227,1718650258071,-531.51,0.00021917,2]
[329756228,1718650258081,-543.14,0.00021917,2]
[329756229,1718650258090,-3937.16,0.00021917,2]
[329756230,1718650258099,-500.0,0.00021917,2]
[329756231,1718650258109,-500.0,0.00021917,2]
[329756232,1718650258118,-500.0,0.00021917,2]
[329756233,1718650258127,-500.0,0.00021917,2]
[329756234,1718650258136,-7031.07,0.00021917,2]
[329756235,1718650258145,-995.48,0.00021917,2]
[329756236,1718650258155,-500.0,0.00021917,2]
[329756237,1718650258164,-151.0,0.00021917,2]
[329756238,1718650258174,-4982.75,0.00021917,2]
[329756239,1718650258183,-500.0,0.00021917,2]
[329756240,1718650258192,-1015.48,0.00021917,2]
[329756241,1718650258201,-14625.16,0.00021917,2]
[329756242,1718650258210,-500.0,0.00021917,2]
[329756243,1718650258219,-151.0,0.00021917,2]
[329756244,1718650258229,-500.0,0.00021917,2]
[329756245,1718650258238,-1381.32,0.00021917,2]
[329756246,1718650258247,-500.0,0.00021917,2]
[329756247,1718650258256,-500.0,0.00021917,2]
[329756248,1718650258268,-608.48,0.00021917,2]
[329756249,1718650258277,-500.0,0.00021917,2]
[329756250,1718650258287,-4292.51,0.00021917,2]
[329756251,1718650258296,-862.83,0.00021917,2]
[329756252,1718650258306,-500.28938703,0.00021917,2]
[329756253,1718650258318,-291.461117,0.00021917,2]
[329756254,1718650258327,-500.0,0.00021917,2]
[329756255,1718650258336,-500.0,0.00021917,2]
[329756256,1718650258346,-941.23,0.00021917,2]
[329756257,1718650258355,-500.0,0.00021917,2]
[329756258,1718650258365,-3625.72,0.00021917,2]
[329756259,1718650258374,-17329.4,0.00021917,2]
[329756260,1718650258383,-1513.82,0.00021917,2]
[329756261,1718650258394,-500.0,0.00021917,2]
[329756262,1718650258404,-500.0,0.00021917,2]
[329756263,1718650258414,-1535.13,0.00021917,2]
[329756264,1718650258423,-1265.87,0.00021917,2]
[329756265,1718650258432,-151.0,0.00021917,2]
[329756266,1718650258442,-430.70731764,0.00021917,2]
[329756267,1718650258452,-6858.67,0.00021917,2]
[329756268,1718650258461,-2658.06,0.00021917,2]
[329756269,1718650258470,-500.0,0.00021917,2]
[329756270,1718650258480,-1579.86,0.00021917,2]
[329756271,1718650258489,-623.85,0.00021917,2]
[329756272,1718650258499,-3335.62,0.00021917,2]
[329756273,1718650258510,-2082.34,0.00021917,2]
[329756274,1718650258519,-2040.5,0.00021917,2]
[329756275,1718650258529,-744.35,0.00021917,2]
[329756276,1718650258538,-500.0,0.00021917,2]
[329756277,1718650258547,-1350.14,0.00021917,2]
[329756278,1718650258556,-514.61817963,0.00021917,2]
[329756279,1718650258566,-8040.36,0.00021917,2]
[329756280,1718650258575,-3739.98,0.00021917,2]
[329756281,1718650258584,-530.05,0.00021917,2]
[329756282,1718650258594,-1053.0,0.00021917,2]
[329756283,1718650258603,-500.0,0.00021917,2]
[329756284,1718650258612,-500.0,0.00021917,2]
[329756285,1718650258622,-500.0,0.00021917,2]
[329756286,1718650258631,-500.0,0.00021917,2]
[329756287,1718650258640,-500.0,0.00021917,2]
[329756288,1718650258649,-2066.23,0.00021917,2]
[329756289,1718650258658,-500.0,0.00021917,2]
[329756290,1718650258667,-11706.03,0.00021917,2]
[329756291,1718650258676,-720.45,0.00021917,2]
[329756292,1718650258686,-500.0,0.00021917,2]
[329756293,1718650258695,-347.963069,0.00021917,2]
[329756294,1718650258704,-500.0,0.00021917,2]
[329756295,1718650258714,-151.0,0.00021917,2]
[329756296,1718650258722,-6799.92,0.00021917,2]
[329756297,1718650258732,-1258.1,0.00021917,2]
[329756298,1718650258741,-5408.4,0.00021917,2]
[329756299,1718650258751,-259.69,0.00021918,2]
[329756300,1718650258761,-151.0,0.00021918,2]
[329756301,1718650258771,-250.0,0.00021918,2]
[329756302,1718650258781,-300.0,0.00021918,2]
[329756303,1718650258790,-1000.0,0.00022,3]
[329756304,1718650258799,-1000.0,0.00022,3]
[329756305,1718650258809,-531.0,0.00022019,2]
[329756306,1718650258819,-500.0,0.00022043,2]
[329756307,1718650258828,-200.0,0.00022043,2]
[329756308,1718650258837,-33457.7299,0.00022091,2]
[329756309,1718650258846,-29094.73025559,0.00022091,2]
[329756310,1718650260447,-549.81337909,0.00021917,2]
[329756311,1718650260511,-1226.88662091,0.00021917,2]
[329756312,1718650260520,-500.0,0.00021917,2]
[329756313,1718650260530,-500.0,0.00021917,2]
[329756314,1718650260539,-47304.59379605,0.00022091,2]
[329756315,1718650260554,-23600.67594836,0.00022091,2]
[329756316,1718650260563,-153.891316,0.00022091,7]
[329756317,1718650260572,-239.27536,0.00022091,7]
[329756318,1718650260581,-239.27536,0.00022091,7]
[329756319,1718650260591,-151.0,0.00022091,7]
[329756320,1718650260600,-151.0,0.00022091,7]
[329756321,1718650260609,-151.0,0.00022091,7]
[329756322,1718650260618,-151.0,0.00022091,7]
[329756323,1718650260627,-151.0,0.00022091,7]
[329756324,1718650260637,-151.0,0.00022091,7]
[329756325,1718650260647,-151.0,0.00022091,7]
[329756326,1718650260656,-153.24032,0.00022091,7]
[329756327,1718650260666,-151.0,0.00022091,7]
[329756328,1718650260676,-347.963069,0.00022091,7]
[329756329,1718650260686,-151.0,0.00022091,7]
[329756330,1718650260695,-195.88,0.00022182,2]
[329756331,1718650260705,-1607.35,0.00022189,3]
[329756332,1718650260722,-1607.35,0.00022189,3]
[329756333,1718650260744,-1607.35,0.00022189,3]
[329756334,1718650260754,-1607.35,0.00022189,3]
[329756335,1718650260764,-1607.47833068,0.00022189,3]
[329756336,1718650260774,-497.71766581,0.0002219,5]
[329756337,1718650260783,-500.0,0.0002219,3]
[329756338,1718650260792,-500.0,0.0002219,3]
[329756339,1718650260801,-500.0,0.0002219,3]
[329756340,1718650260811,-500.0,0.0002219,3]
[329756341,1718650260820,-500.0,0.0002219,3]
[329756342,1718650260829,-500.0,0.0002219,3]
[329756343,1718650260839,-500.0,0.0002219,3]
[329756344,1718650260848,-500.0,0.0002219,3]
[329756345,1718650260857,-151.0,0.0002219,7]
[329756346,1718650260866,-151.0,0.0002219,7]
[329756347,1718650260876,-151.0,0.0002219,7]
[329756348,1718650260885,-151.0,0.0002219,7]
[329756349,1718650260894,-151.0,0.0002219,7]
[329756350,1718650260904,-151.0,0.0002219,7]
[329756351,1718650260913,-300.0,0.0002219,2]
[329756352,1718650260922,-500.0,0.00022191,3]
[329756353,1718650260932,-500.0,0.00022191,3]
[329756354,1718650260941,-500.0,0.00022191,3]
[329756355,1718650260950,-529.87,0.00022191,3]
[329756356,1718650260960,-500.0,0.00022191,3]
[329756357,1718650260969,-500.0,0.00022191,3]
[329756358,1718650260978,-598.69,0.00022191,3]
[329756359,1718650260988,-500.0,0.00022191,3]
[329756360,1718650260998,-500.0,0.00022191,3]
[329756361,1718650261011,-559.68,0.00022191,3]
[329756362,1718650261020,-500.0,0.00022191,3]
[329756363,1718650261029,-500.0,0.00022191,3]
[329756364,1718650261039,-500.0,0.00022191,3]
[329756365,1718650261049,-312.54408373,0.00022191,3]
[329756366,1718650261058,-500.0,0.00022191,3]
[329756367,1718650261067,-543.0,0.00022191,3]
[329756368,1718650261077,-500.0,0.00022191,3]
[329756369,1718650261086,-414.97879614,0.00022191,3]
[329756370,1718650261095,-565.04,0.00022191,3]
[329756371,1718650261106,-500.0,0.00022191,3]
[329756372,1718650261115,-500.0,0.00022191,3]
[329756373,1718650261124,-500.0,0.00022191,3]
[329756374,1718650261133,-500.0,0.00022191,3]
[329756375,1718650261143,-920.14,0.00022191,3]
[329756376,1718650261152,-500.0,0.00022191,3]
[329756377,1718650261161,-500.0,0.00022191,3]
[329756378,1718650261170,-151.802077,0.00022191,7]
[329756379,1718650261180,-500.0,0.00022191,3]
[329756380,1718650261189,-500.0,0.00022191,3]
[329756381,1718650261198,-510.93623117,0.00022191,3]
[329756382,1718650261208,-515.53,0.00022191,3]
[329756383,1718650261217,-500.0,0.00022191,3]
[329756384,1718650261227,-500.0,0.00022191,3]
[329756385,1718650261236,-674.42,0.00022191,3]
[329756386,1718650261246,-512.26,0.00022191,3]
[329756387,1718650261255,-500.0,0.00022191,3]
[329756388,1718650261265,-500.0,0.00022191,3]
[329756389,1718650261274,-747.76,0.00022191,3]
[329756390,1718650261284,-500.0,0.00022191,3]
[329756391,1718650261293,-500.0,0.00022191,3]
[329756392,1718650261302,-500.0,0.00022191,3]
[329756393,1718650261316,-695.23,0.00022191,3]
[329756394,1718650261326,-500.0,0.00022191,3]
[329756395,1718650261335,-937.69,0.00022191,3]
[329756396,1718650261344,-500.0,0.00022191,3]
[329756397,1718650261355,-151.0,0.00022191,7]
[329756398,1718650261365,-151.0,0.00022191,7]
[329756399,1718650261374,-500.0,0.00022191,3]
[329756400,1718650261383,-500.0,0.00022191,3]
[329756401,1718650261398,-500.0,0.00022191,3]
[329756402,1718650261407,-500.0,0.00022191,3]
[329756403,1718650261417,-500.0,0.00022191,3]
[329756404,1718650261426,-500.0,0.00022191,3]
[329756405,1718650261436,-500.0,0.00022191,3]
[329756406,1718650261447,-693.55,0.00022191,3]
[329756407,1718650261456,-500.0,0.00022191,3]
[329756408,1718650261465,-500.0,0.00022191,3]
[329756409,1718650261474,-500.0,0.00022191,3]
[329756410,1718650261483,-500.0,0.00022191,3]
[329756411,1718650261492,-500.0,0.00022191,3]
[329756412,1718650261501,-151.0,0.00022191,7]
[329756413,1718650261510,-500.0,0.00022191,3]
[329756414,1718650261520,-500.0,0.00022191,3]
[329756415,1718650261530,-500.0,0.00022191,3]
[329756416,1718650261539,-150.6402439,0.00022191,3]
[329756417,1718650261556,-349.3597561,0.00022191,3]
[329756418,1718650261565,-500.0,0.00022191,3]
[329756419,1718650261574,-500.0,0.00022191,3]
[329756420,1718650261583,-261.38266978,0.00022191,3]
[329756421,1718650261594,-238.61733022,0.00022191,3]
[329756422,1718650261604,-500.0,0.00022191,3]
[329756423,1718650261613,-500.0,0.00022191,3]
[329756424,1718650261622,-536.38266978,0.00022191,3]
[329756425,1718650261637,-101.73733022,0.00022191,3]
[329756426,1718650261646,-500.0,0.00022191,3]
[329756427,1718650261655,-500.0,0.00022191,3]
[329756428,1718650261665,-500.0,0.00022191,3]
[329756429,1718650261674,-500.0,0.00022191,3]
[329756430,1718650261683,-500.0,0.00022191,3]
[329756431,1718650261692,-500.0,0.00022191,3]
[329756432,1718650261701,-916.37,0.00022191,3]
[329756433,1718650261710,-648.77107552,0.00022191,3]
[329756434,1718650261720,-500.0,0.00022191,3]
[329756435,1718650261729,-547.16,0.00022191,3]
[329756436,1718650261738,-500.0,0.00022191,3]
[329756437,1718650261748,-500.0,0.00022191,3]
[329756438,1718650261757,-540.37,0.00022191,3]
[329756439,1718650261768,-520.79,0.00022191,3]
[329756440,1718650261778,-500.0,0.00022191,3]
[329756441,1718650261786,-500.0,0.00022191,3]
[329756442,1718650261796,-500.0,0.00022191,3]
[329756443,1718650261805,-500.0,0.00022191,3]
[329756444,1718650261815,-400.1103557,0.00022191,3]
[329756445,1718650261824,-771.78,0.00022191,3]
[329756446,1718650261834,-500.0,0.00022191,3]
[329756447,1718650261844,-578.7,0.00022191,3]
[329756448,1718650261853,-675.76,0.00022191,3]
[329756449,1718650261863,-500.0,0.00022191,3]
[329756450,1718650261872,-500.0,0.00022191,3]
[329756451,1718650261881,-586.21,0.00022191,3]
[329756452,1718650261890,-500.0,0.00022191,3]
[329756453,1718650261900,-500.0,0.00022191,3]
[329756454,1718650261909,-500.0,0.00022191,3]
[329756455,1718650261919,-500.0,0.00022191,3]
[329756456,1718650261928,-500.0,0.00022191,3]
[329756457,1718650261938,-500.0,0.00022191,3]
[329756458,1718650261947,-666.72,0.00022191,3]
[329756459,1718650261956,-538.24,0.00022191,3]
[329756460,1718650261965,-500.0,0.00022191,3]
[329756461,1718650261974,-718.17,0.00022191,3]
[329756462,1718650261983,-504.22070455,0.00022191,3]
[329756463,1718650261993,-1144.29,0.00022191,3]
[329756464,1718650262002,-500.0,0.00022191,3]
[329756465,1718650262011,-509.64254043,0.00022191,3]
[329756466,1718650262022,-500.0,0.00022191,3]
[329756467,1718650262032,-500.0,0.00022191,3]
[329756468,1718650262042,-500.0,0.00022191,3]
[329756469,1718650262051,-500.0,0.00022191,3]
[329756470,1718650262060,-500.0,0.00022191,3]
[329756471,1718650262069,-659.75,0.00022191,3]
[329756472,1718650262078,-500.0,0.00022191,3]
[329756473,1718650262087,-500.0,0.00022191,3]
[329756474,1718650262096,-500.0,0.00022191,3]
[329756475,1718650262106,-536.13,0.00022191,3]
[329756476,1718650262115,-854.24,0.00022191,3]
[329756477,1718650262125,-816.96,0.00022191,3]
[329756478,1718650262134,-2219.75,0.00022191,3]
[329756479,1718650262323,-500.0,0.00022191,3]
[329756480,1718650262349,-500.0,0.00022191,3]
[329756481,1718650262361,-1217.21,0.00022191,3]
[329756482,1718650262370,-604.45,0.00022191,3]
[329756483,1718650262379,-500.0,0.00022191,3]
[329756484,1718650262388,-641.4,0.00022191,3]
[329756485,1718650262402,-500.0,0.00022191,3]
[329756486,1718650262412,-500.0,0.00022191,3]
[329756487,1718650262421,-977.29,0.00022191,3]
[329756488,1718650262430,-2677.27,0.00022191,3]
[329756489,1718650262439,-500.0,0.00022191,3]
[329756490,1718650262449,-2395.74,0.00022191,3]
[329756491,1718650262458,-519.32325408,0.00022191,3]
[329756492,1718650262467,-707.11,0.00022191,3]
[329756493,1718650262476,-732.58,0.00022191,3]
[329756494,1718650262485,-500.0,0.00022191,3]
[329756495,1718650262495,-1363.85,0.00022191,3]
[329756496,1718650262504,-500.0,0.00022191,3]
[329756497,1718650262515,-500.0,0.00022191,3]
[329756498,1718650262524,-500.0,0.00022191,3]
[329756499,1718650262533,-911.79,0.00022191,3]
[329756500,1718650262542,-304.97129414,0.00022191,3]
[329756501,1718650262551,-1749.73,0.00022191,3]
[329756502,1718650262561,-500.0,0.00022191,3]
[329756503,1718650262570,-2220.7,0.00022191,3]
[329756504,1718650262579,-500.0,0.00022191,3]
[329756505,1718650262589,-557.31,0.00022191,3]
[329756506,1718650262598,-500.0,0.00022191,3]
[329756507,1718650262608,-500.0,0.00022191,3]
[329756508,1718650262617,-2129.77,0.00022191,3]
[329756509,1718650262626,-902.98,0.00022191,3]
[329756510,1718650262636,-500.0,0.00022191,3]
[329756511,1718650262645,-500.0,0.00022191,3]
[329756512,1718650262654,-885.73,0.00022191,3]
[329756513,1718650262664,-1023.29,0.00022191,3]
[329756514,1718650262673,-1296.92,0.00022191,3]
[329756515,1718650262682,-500.0,0.00022191,3]
[329756516,1718650262691,-500.0,0.00022191,3]
[329756517,1718650262701,-516.73751226,0.00022191,3]
[329756518,1718650262710,-500.0,0.00022191,3]
[329756519,1718650262719,-526.32,0.00022191,3]
[329756520,1718650262728,-679.68,0.00022191,3]
[329756521,1718650262738,-500.0,0.00022191,3]
[329756522,1718650262747,-500.0,0.00022191,3]
[329756523,1718650262756,-2060.11,0.00022191,3]
[329756524,1718650262767,-588.89527622,0.00022191,3]
[329756525,1718650262776,-816.64,0.00022191,3]
[329756526,1718650262785,-1346.94,0.00022191,3]
[329756527,1718650262794,-500.0,0.00022191,3]
[329756528,1718650262804,-500.0,0.00022191,3]
[329756529,1718650262814,-1234.95,0.00022191,3]
[329756530,1718650262823,-1740.07,0.00022191,3]
[329756531,1718650262833,-239.27536,0.00022191,7]
[329756532,1718650262843,-500.0,0.00022191,3]
[329756533,1718650262853,-500.0,0.00022191,3]
[329756534,1718650262862,-500.0,0.00022191,3]
[329756535,1718650262871,-500.0,0.00022191,3]
[329756536,1718650262881,-500.0,0.00022191,3]
[329756537,1718650262890,-500.0,0.00022191,3]
[329756538,1718650262900,-500.0,0.00022191,3]
[329756539,1718650262909,-500.0,0.00022191,3]
[329756540,1718650262918,-239.27536,0.00022191,7]
[329756541,1718650262927,-500.0,0.00022191,3]
[329756542,1718650262936,-500.0,0.00022191,3]
[329756543,1718650262945,-500.0,0.00022191,3]
[329756544,1718650262954,-500.0,0.00022191,3]
[329756545,1718650262964,-500.0,0.00022191,3]
[329756546,1718650262973,-971.68,0.00022191,3]
[329756547,1718650262982,-500.0,0.00022191,3]
[329756548,1718650262991,-500.0,0.00022191,3]
[329756549,1718650263000,-500.0,0.00022191,3]
[329756550,1718650263010,-711.33,0.00022191,3]
[329756551,1718650263022,-500.0,0.00022191,3]
[329756552,1718650263031,-500.0,0.00022191,3]
[329756553,1718650263040,-2216.09,0.00022191,3]
[329756554,1718650263050,-500.0,0.00022191,3]
[329756555,1718650263059,-500.0,0.00022191,3]
[329756556,1718650263068,-500.0,0.00022191,3]
[329756557,1718650263078,-500.0,0.00022191,3]
[329756558,1718650263087,-500.0,0.00022191,3]
[329756559,1718650263097,-2104.25,0.00022191,3]
[329756560,1718650263106,-893.63,0.00022191,3]
[329756561,1718650263115,-500.0,0.00022191,3]
[329756562,1718650263125,-981.52,0.00022191,3]
[329756563,1718650263135,-695.65,0.00022191,3]